bitfinex/quotes_SOLUSD_20240725
["timestamp","ask_amount","ask_price","bid_price","bid_amount"]
[1721904512520,30.75,167.68,167.44,25.76570259]
[1721904512825,30.75,167.59,167.45,1.19383039]
[1721904513016,30.75,167.59,167.46,1.19386901]
[1721904513320,30.75,167.59,167.44,6.0616]
[1721904513321,21.19206731,167.58,167.44,25.22965114]
[1721904513529,3.42115557,167.57,167.44,26.42349631]
[1721904513723,30.75,167.56,167.44,26.42349631]
[1721904514226,30.75,167.56,167.38,1.19392602]
[1721904514227,30.75,167.52,167.38,1.19392602]
[1721904514523,3.42115557,167.51,167.38,1.19392602]
[1721904514725,2.22542519,167.5,167.37,26.3012]
[1721904514924,2.22542519,167.5,167.38,1.19430349]
[1721904515116,31.19206731,167.49,167.37,7.49550366]
[1721904515714,2.22179866,167.48,167.37,7.49550366]
[1721904516106,30.0,167.47,167.37,7.49550366]
[1721904516319,32.22179866,167.47,167.37,7.49550366]
[1721904516517,2.22179866,167.47,167.37,7.49550366]
[1721904516717,2.22179866,167.47,167.38,20.0]
[1721904516925,2.22179866,167.46,167.38,20.0]
[1721904517611,2.22179866,167.46,167.39,1.19444429]
[1721904517824,2.22179866,167.46,167.38,21.19437179]
[1721904519030,2.22179866,167.46,167.39,45.0]
[1721904519211,2.22179866,167.46,167.4,20.0]
[1721904519412,2.22179866,167.46,167.41,45.0]
[1721904519623,2.22179866,167.46,167.42,20.0]
[1721904519823,2.22179866,167.46,167.43,45.0]
[1721904520035,2.22179866,167.46,167.35,3.78054424]
[1721904520220,1.19206731,167.45,167.35,3.78054424]
[1721904520427,30.0,167.43,167.35,3.78054424]
[1721904520612,32.22179866,167.43,167.35,3.78054424]
[1721904520811,2.22179866,167.42,167.35,3.78054424]
[1721904521417,2.22179866,167.42,167.36,1.19460404]
[1721904521613,2.22179866,167.42,167.35,3.78054424]
[1721904522318,2.22179866,167.42,167.36,1.19459084]
[1721904522524,2.22179866,167.42,167.35,4.97514012]
[1721904522729,2.22179866,167.42,167.35,3.78054424]
[1721904524727,2.22179866,167.42,167.35,23.78054424]
[1721904525040,2.22179866,167.42,167.36,45.0]
[1721904525246,2.22179866,167.42,167.37,20.0]
[1721904526030,2.22179866,167.42,167.35,3.78054424]
[1721904528625,2.22179866,167.42,167.35,23.78054424]
[1721904528942,2.22179866,167.42,167.36,45.0]
[1721904529136,2.22179866,167.42,167.37,20.0]
[1721904529513,2.22179866,167.42,167.38,45.0]
[1721904531925,2.22179866,167.42,167.37,20.0]
[1721904532130,2.22179866,167.42,167.38,46.19466905]
[1721904532442,2.22179866,167.42,167.38,45.0]
[1721904533728,2.22179866,167.42,167.39,20.0]
[1721904533932,2.22179866,167.42,167.4,45.0]
[1721904534132,2.22179866,167.42,167.35,3.78054424]
[1721904535823,2.22179866,167.42,167.35,23.78054424]
[1721904536134,2.22179866,167.42,167.36,45.0]
[1721904536724,3.41386597,167.42,167.35,3.78054424]
[1721904536924,2.22179866,167.42,167.35,3.78054424]
[1721904540423,2.22179866,167.42,167.36,1.19471026]
[1721904540628,2.22179866,167.42,167.36,45.0]
[1721904541938,0.02849866,167.42,167.37,20.0]
[1721904542238,1.19206731,167.51,167.38,45.0]
[1721904542442,27.46,167.47,167.38,45.0]
[1721904542817,27.46,167.47,167.38,46.19450491]
[1721904543048,299.52,167.52,167.38,46.19450491]
[1721904543257,27.46,167.52,167.39,20.0]
[1721904543548,27.46,167.52,167.4,46.19426557]
[1721904544347,5.883,167.54,167.41,75.7739]
[1721904544523,5.883,167.54,167.42,46.1939582]
[1721904544717,27.46,167.55,167.44,20.0]
[1721904544940,27.46,167.55,167.45,66.19379724]
[1721904545145,27.46,167.55,167.46,1.19378193]
[1721904545440,27.46,167.58,167.46,1.19378193]
[1721904546325,7.07506731,167.59,167.46,1.19378193]
[1721904546739,5.883,167.59,167.46,1.19378193]
[1721904547934,7.07506731,167.59,167.46,1.19378193]
[1721904548134,1.19206731,167.59,167.46,1.19378193]
[1721904548329,30.85,167.61,167.46,1.19378193]
[1721904548856,50.00206731,167.61,167.46,1.19378193]
[1721904549146,30.85,167.61,167.46,1.19378193]
[1721904549449,1.19206731,167.6,167.46,1.19378193]
[1721904549642,5.883,167.63,167.49,20.0]
[1721904549830,5.883,167.63,167.51,15.4585]
[1721904550141,1.19206731,167.65,167.52,46.19342729]
[1721904550724,254.1,167.66,167.53,20.0]
[1721904551058,1.19206731,167.65,167.54,45.0]
[1721904551226,1.19206731,167.64,167.54,45.0]
[1721904551553,254.1,167.66,167.54,45.0]
[1721904551751,254.1,167.66,167.55,21.1933511]
[1721904552062,254.1,167.66,167.56,45.0]
[1721904552352,15.23278787,167.71,167.57,21.19304937]
[1721904552526,15.23278787,167.71,167.58,1.19294371]
[1721904552733,1.19206731,167.7,167.58,45.0]
[1721904552933,1.19206731,167.7,167.58,46.19300137]
[1721904553169,15.23278787,167.71,167.58,46.19300137]
[1721904553170,5.883,167.71,167.58,46.19300137]
[1721904553344,30.85,167.72,167.59,20.0]
[1721904553531,1.19206731,167.72,167.6,45.0]
[1721904553834,1.19206731,167.74,167.61,21.19294543]
[1721904554172,1.19206731,167.73,167.62,45.0]
[1721904554528,27.30683817,167.75,167.62,46.19281602]
[1721904554529,1.19206731,167.74,167.62,46.19281602]
[1721904554728,1.19206731,167.73,167.62,45.0]
[1721904555267,5.883,167.77,167.62,45.0]
[1721904555268,25.03506731,167.77,167.63,27.76691751]
[1721904555428,30.85,167.74,167.64,45.0]
[1721904555629,1.19206731,167.73,167.64,45.0]
[1721904556038,30.85,167.74,167.63,7.76718043]
[1721904556243,30.85,167.74,167.64,45.0]
[1721904556641,32.04206731,167.74,167.64,45.0]
[1721904556841,1.19206731,167.73,167.64,45.0]
[1721904557056,1.19206731,167.73,167.63,6.5743]
[1721904557643,50.00206731,167.74,167.63,6.5743]
[1721904557930,1.19206731,167.73,167.63,6.5743]
[1721904559053,30.85,167.74,167.63,6.5743]
[1721904559365,30.85,167.74,167.64,45.0]
[1721904559560,1.19206731,167.73,167.64,45.0]
[1721904559968,30.85,167.74,167.64,45.0]
[1721904560764,5.883,167.77,167.65,1.19257937]
[1721904561133,30.85,167.78,167.65,1.19257937]
[1721904561332,30.85,167.78,167.65,21.19257937]
[1721904561563,30.85,167.78,167.66,45.0]
[1721904561769,32.04206731,167.78,167.67,20.0]
[1721904562067,32.04206731,167.78,167.68,45.0]
[1721904562768,30.85,167.78,167.68,45.0]
[1721904562973,1.19206731,167.77,167.68,45.0]
[1721904563148,32.04206731,167.78,167.68,45.0]
[1721904563960,0.04450737,167.77,167.68,45.0]
[1721904565251,0.04450737,167.77,167.64,1.19250391]
[1721904565478,0.04450737,167.77,167.65,1.19252375]
[1721904565853,0.04450737,167.77,167.64,20.0]
[1721904566169,27.38,167.72,167.64,20.0]
[1721904566397,0.04450737,167.71,167.65,45.0]
[1721904567459,0.04450737,167.71,167.65,46.19260408]
[1721904569269,0.04450737,167.71,167.61,15.5523]
[1721904569270,27.38,167.69,167.61,15.5523]
[1721904569479,0.04450737,167.68,167.61,15.5523]
[1721904571301,27.38,167.63,167.56,1.19294886]
[1721904571473,45.34,167.66,167.48,15.2213]
[1721904571474,27.38,167.57,167.48,15.2213]
[1721904571657,0.04450737,167.56,167.48,15.2213]
[1721904572360,1.23657468,167.56,167.48,15.2213]
[1721904573064,0.04450737,167.56,167.48,15.2213]
[1721904573779,0.04450737,167.56,167.49,1.19389238]
[1721904573965,0.04450737,167.56,167.48,16.41490611]
[1721904574171,0.04450737,167.56,167.49,45.0]
[1721904574480,0.04450737,167.56,167.49,46.19362727]
[1721904574863,0.04450737,167.56,167.5,20.0]
[1721904575087,0.04450737,167.56,167.51,46.19341521]
[1721904575393,0.04450737,167.56,167.53,6.4088]
[1721904575555,0.04450737,167.56,167.54,66.19321484]
[1721904575755,30.84,167.68,167.55,1.193177]
[1721904575988,30.84,167.68,167.56,15.7267]
[1721904576158,30.84,167.68,167.57,65.0]
[1721904576357,1.19206731,167.67,167.57,65.0]
[1721904576690,30.84,167.68,167.57,66.19305756]
[1721904576862,1.19206731,167.7,167.57,65.0]
[1721904577180,19.15206731,167.71,167.58,1.19300841]
[1721904577389,32.03206731,167.72,167.58,1.19300841]
[1721904578062,30.84,167.72,167.58,1.19300841]
[1721904578683,1.19206731,167.71,167.58,1.19300841]
[1721904578983,1.19206731,167.7,167.57,66.19290425]
[1721904579652,30.84,167.68,167.57,20.0]
[1721904579855,1.19206731,167.67,167.56,15.7267]
[1721904580260,1.19206731,167.67,167.57,20.0]
[1721904580582,1.19206731,167.66,167.57,20.0]
[1721904581084,30.84,167.68,167.57,20.0]
[1721904581264,1.19206731,167.76,167.58,27.7166084]
[1721904581467,1.19206731,167.74,167.59,20.0]
[1721904581782,1.19206731,167.74,167.6,46.19280987]
[1721904581957,30.84,167.75,167.61,21.19280924]
[1721904582162,17.96,167.78,167.62,60.5905]
[1721904582358,17.96,167.78,167.63,21.19252536]
[1721904582583,1.19206731,167.77,167.64,45.0]
[1721904582791,1.19206731,167.76,167.65,6.2286]
[1721904582989,1.19206731,167.76,167.66,45.0]
[1721904584565,48.8,167.8,167.66,46.19257434]
[1721904584799,21.19206731,167.79,167.66,46.19257434]
[1721904585088,1.19206731,167.79,167.66,46.19257434]
[1721904585300,1.19206731,167.79,167.67,20.0]
[1721904585476,1.19206731,167.79,167.68,45.0]
[1721904586876,48.8,167.76,167.65,6.2286]
[1721904587175,1.19206731,167.75,167.65,6.2286]
[1721904588978,7.15326731,167.75,167.65,6.2286]
[1721904589291,1.19206731,167.75,167.66,45.0]
[1721904590396,1.19206731,167.75,167.65,6.2286]
[1721904590606,48.8,167.76,167.62,15.5905]
[1721904590607,5.883,167.73,167.62,1.19284415]
[1721904590766,17.96,167.58,167.41,20.0]
[1721904590970,48.8,167.44,167.35,3.78054424]
[1721904591194,5.80908516,167.43,167.24,1.19538375]
[1721904591498,30.84,167.4,167.25,20.0]
[1721904591700,30.84,167.4,167.26,1.19519489]
[1721904591995,23.941564,167.44,167.3,1.19519589]
[1721904592199,30.84,167.45,167.28,1.19498471]
[1721904592497,20.0,167.43,167.29,1.97874627]
[1721904592677,20.0,167.43,167.3,1.19503802]
[1721904593085,20.0,167.44,167.3,1.19503802]
[1721904593679,20.0,167.44,167.3,1.19496596]
[1721904593895,20.0,167.44,167.29,1.97854556]
[1721904594105,20.0,167.44,167.29,0.7835796]
[1721904594401,57.79,167.44,167.29,0.7835796]
[1721904594614,2.56787029,167.57,167.32,20.0]
[1721904594892,37.79,167.54,167.35,20.0]
[1721904595111,1.03578614,167.57,167.37,20.0]
[1721904595405,1.03578614,167.57,167.41,20.0]
[1721904595588,20.0,167.56,167.42,21.19398114]
[1721904595797,1.03578614,167.57,167.43,46.19392792]
[1721904595981,1.03578614,167.57,167.46,16.327]
[1721904596292,1.03578614,167.57,167.47,66.19362034]
[1721904596477,37.79,167.64,167.47,65.0]
[1721904596689,43.95087396,167.68,167.48,1.19380331]
[1721904596982,43.95087396,167.68,167.47,65.0]
[1721904597296,5.9655,167.63,167.47,45.0]
[1721904597502,23.914013,167.67,167.48,41.1939211]
[1721904597805,37.79,167.68,167.49,46.19349208]
[1721904597999,37.79,167.68,167.5,20.0]
[1721904598206,37.79,167.76,167.51,45.0]
[1721904598392,37.79,167.76,167.52,20.0]
[1721904598597,23.905837,167.73,167.53,65.0]
[1721904598903,55.75,167.72,167.54,20.0]
[1721904599100,5.9632,167.7,167.55,45.0]
[1721904599273,23.905244,167.74,167.56,20.0]
[1721904599474,37.79,167.77,167.57,46.1929793]
[1721904599675,17.96,167.76,167.58,1.19297935]
[1721904599976,17.96,167.76,167.57,45.0]
[1721904600188,43.9508749,167.77,167.58,7.67630053]
[1721904600386,5.9588,167.82,167.59,60.0306]
[1721904600583,5.9587,167.82,167.6,21.19270264]
[1721904600884,23.9191,167.81,167.61,46.19273029]
[1721904601084,23.9195,167.8,167.62,20.0]
[1721904603406,5.9581,167.84,167.68,20.0]
[1721904603611,5.9581,167.84,167.69,45.0]
[1721904603938,5.9604,167.78,167.55,20.0]
[1721904604111,17.96,167.79,167.59,16.22337769]
[1721904604405,20.0,167.78,167.6,1.19287125]
[1721904604621,20.0,167.78,167.61,1.19268961]
[1721904604782,43.9191,167.81,167.61,1.19268961]
[1721904604983,5.9599,167.79,167.61,1.19268961]
[1721904605185,20.0,167.78,167.61,1.19268961]
[1721904605583,25.9602,167.78,167.61,1.19268961]
[1721904605786,20.0,167.78,167.61,1.19268961]
[1721904606013,20.0,167.8,167.61,1.19268961]
[1721904606390,20.0,167.82,167.61,1.19268961]
[1721904606585,5.9599,167.79,167.61,1.19268961]
[1721904606796,20.0,167.78,167.62,20.0]
[1721904607002,20.0,167.78,167.63,46.1924394]
[1721904607181,37.79,167.83,167.64,20.0]
[1721904607400,43.7484,167.83,167.65,46.19240515]
[1721904607596,5.9595,167.8,167.65,45.0]
[1721904607789,5.9591,167.81,167.65,45.0]
[1721904608198,5.9595,167.8,167.65,45.0]
[1721904608606,20.0,167.79,167.65,45.0]
[1721904609007,20.0,167.79,167.66,1.19261158]
[1721904609311,20.0,167.81,167.66,1.19261158]
[1721904609510,37.79,167.83,167.66,1.19261158]
[1721904609697,5.9566,167.89,167.67,27.23569727]
[1721904609899,37.79,167.9,167.69,35.8631]
[1721904610108,6.7406796,167.87,167.7,46.19199765]
[1721904610303,6.158678,167.86,167.7,46.19199765]
[1721904610498,5.9577,167.85,167.7,45.0]
[1721904610705,12.116278,167.86,167.7,45.0]
[1721904611114,5.9577,167.85,167.71,1.19215133]
[1721904611318,20.0,167.84,167.7,46.19206646]
[1721904611503,20.0,167.85,167.71,1.19207577]
[1721904611898,25.9577,167.85,167.71,1.19207577]
[1721904612217,25.9577,167.85,167.7,46.19207221]
[1721904612390,20.0,167.85,167.7,46.19207221]
[1721904612591,20.0,167.85,167.71,1.19205854]
[1721904612913,5.9589,167.82,167.71,1.1918677]
[1721904613122,20.0,167.81,167.71,1.1918677]
[1721904613418,20.0,167.81,167.69,15.8631]
[1721904613808,43.948678,167.86,167.69,15.8631]
[1721904613809,5.9589,167.82,167.69,15.8631]
[1721904614116,20.0,167.81,167.7,1.19235749]
[1721904614300,5.9584,167.83,167.71,1.19224247]
[1721904614495,25.9587,167.82,167.69,15.8631]
[1721904614697,5.9587,167.82,167.69,15.8631]
[1721904614896,20.0,167.81,167.69,15.8631]
[1721904615119,20.0,167.81,167.7,45.0]
[1721904616404,25.9587,167.82,167.7,45.0]
[1721904616618,20.0,167.82,167.7,45.0]
[1721904617119,20.0,167.82,167.71,1.19235451]
[1721904617323,25.9584,167.83,167.7,45.0]
[1721904618318,25.9584,167.83,167.71,1.19232868]
[1721904618521,5.9587,167.82,167.7,45.0]
[1721904618702,25.9592,167.81,167.7,45.0]
[1721904619019,20.0,167.81,167.71,1.19235596]
[1721904619408,20.0,167.81,167.7,45.0]
[1721904619925,20.0,167.81,167.71,1.19237888]
[1721904620103,25.9578,167.85,167.71,1.19237888]
[1721904620296,5.9578,167.85,167.7,46.19216272]
[1721904620522,6.158678,167.86,167.7,45.0]
[1721904621023,5.958,167.85,167.7,45.0]
[1721904621215,6.158678,167.86,167.71,1.19214892]
[1721904621417,12.116078,167.86,167.7,46.19203561]
[1721904621807,20.0,167.85,167.7,46.19203561]
[1721904622018,20.0,167.85,167.71,1.1920587]
[1721904622214,20.0,167.85,167.7,46.1920231]
[1721904622407,25.9577,167.85,167.7,45.0]
[1721904622608,20.0,167.85,167.7,45.0]
[1721904622827,20.0,167.85,167.71,1.19207902]
[1721904623123,20.0,167.85,167.7,45.0]
[1721904623315,20.0,167.85,167.71,1.19191844]
[1721904623514,20.0,167.85,167.7,46.19191585]
[1721904623728,20.0,167.85,167.71,1.19200917]
[1721904624924,25.9577,167.85,167.7,46.19203513]
[1721904625219,20.0,167.85,167.71,1.19202822]
[1721904627827,25.9579,167.85,167.71,1.19202822]
[1721904628025,20.0,167.85,167.71,1.19202822]
[1721904629533,20.0,167.85,167.72,6.5335]
[1721904629716,20.0,167.85,167.73,46.19185777]
[1721904629910,20.0,167.85,167.74,1.19185788]
[1721904630305,20.0,167.85,167.72,6.5335]
[1721904630519,20.0,167.85,167.73,1.19195302]
[1721904630719,5.958,167.84,167.72,6.5335]
[1721904631035,20.0,167.83,167.72,6.5335]
[1721904631535,5.9591,167.81,167.72,6.5335]
[1721904631735,5.9597,167.8,167.72,6.5335]
[1721904632022,25.9584,167.83,167.72,6.5335]
[1721904632213,5.9584,167.83,167.72,6.5335]
[1721904632415,5.9589,167.82,167.72,6.5335]
[1721904632809,5.9591,167.81,167.72,6.5335]
[1721904633010,5.9587,167.82,167.72,6.5335]
[1721904633209,5.9587,167.82,167.73,1.19223904]
[1721904633434,5.9592,167.81,167.72,6.5335]
[1721904633625,5.9588,167.82,167.72,6.5335]
[1721904633826,5.9591,167.81,167.72,6.5335]
[1721904634028,5.9588,167.82,167.72,6.5335]
[1721904634431,5.9584,167.83,167.73,1.19227695]
[1721904634612,48.71,167.84,167.73,1.19222871]
[1721904634810,48.71,167.84,167.73,46.19222871]
[1721904635129,5.9584,167.83,167.73,45.0]
[1721904635309,54.6681,167.84,167.73,45.0]
[1721904635509,5.9584,167.83,167.73,45.0]
[1721904637523,5.9588,167.82,167.73,45.0]
[1721904638415,23.9184,167.83,167.73,45.0]
[1721904639917,17.96,167.83,167.73,45.0]
[1721904640127,5.959,167.82,167.73,45.0]
[1721904640536,23.919,167.82,167.73,45.0]
[1721904640835,17.96,167.82,167.73,45.0]
[1721904641415,17.96,167.83,167.73,45.0]
[1721904641914,5.9587,167.82,167.73,45.0]
[1721904642129,17.96,167.83,167.73,45.0]
[1721904642435,5.9588,167.82,167.73,45.0]
[1721904642653,17.96,167.82,167.73,45.0]
[1721904642824,5.9615,167.75,167.43,17.96]
[1721904643024,1.19237937,167.74,167.58,20.0]
[1721904643226,1.19237937,167.73,167.59,1.19268046]
[1721904643919,31.94237937,167.76,167.59,1.19268046]
[1721904644114,30.75,167.76,167.59,21.19268046]
[1721904644321,31.94237937,167.76,167.6,1.19259481]
[1721904644526,31.94237937,167.76,167.61,1.19256121]
[1721904645227,30.75,167.76,167.61,21.19256121]
[1721904645419,389.2,167.78,167.62,65.0]
[1721904645621,389.2,167.78,167.63,1.19241896]
[1721904646143,389.2,167.78,167.64,22.8948]
[1721904646440,389.2,167.78,167.65,66.19241857]
[1721904646640,30.75,167.8,167.65,66.19241857]
[1721904646837,1.19237937,167.79,167.65,65.0]
[1721904647517,25.11237937,167.79,167.65,65.0]
[1721904648217,19.15237937,167.79,167.65,65.0]
[1721904648735,1.19237937,167.79,167.65,65.0]
[1721904649039,1.19237937,167.79,167.65,66.19259616]
[1721904649424,1.19237937,167.79,167.65,66.19242664]
[1721904651239,31.94237937,167.8,167.65,66.19242664]
[1721904651419,1.19237937,167.79,167.65,65.0]
[1721904651625,7.15217937,167.79,167.65,65.0]
[1721904652123,25.11217937,167.79,167.65,65.0]
[1721904652331,25.11227937,167.79,167.65,65.0]
[1721904652840,1.19237937,167.79,167.65,65.0]
[1721904653140,7.45021068,167.79,167.59,1.19201474]
[1721904653315,27.45021068,167.79,167.59,1.19201474]
[1721904653731,10.75351275,167.78,167.59,1.19201474]
[1721904653931,21.49082745,167.77,167.59,1.19201474]
[1721904654126,1.49082786,167.76,167.59,1.19201474]
[1721904654321,20.0,167.77,167.59,3.44988253]
[1721904654626,1.4906192,167.76,167.59,3.44988253]
[1721904655140,21.49063371,167.79,167.59,99.19988253]
[1721904655336,21.49063371,167.79,167.6,22.25773307]
[1721904655529,20.0,167.79,167.61,66.19218237]
[1721904655735,20.0,167.79,167.61,88.44978074]
[1721904655935,20.0,167.79,167.62,21.8739]
[1721904656142,20.0,167.79,167.63,66.19205132]
[1721904656458,7.65722579,167.81,167.63,66.19205132]
[1721904656646,45.0,167.8,167.63,66.19205132]
[1721904656946,45.0,167.81,167.63,66.19205132]
[1721904657439,46.4903177,167.81,167.63,66.19205132]
[1721904659151,46.4903177,167.81,167.63,86.19205132]
[1721904659449,254.1,167.82,167.63,119.19938034]
[1721904659761,65.0,167.81,167.63,119.19938034]
[1721904660325,65.0,167.81,167.63,99.19938034]
[1721904660525,1.49028191,167.8,167.63,99.19938034]
[1721904660959,72.44949334,167.81,167.63,99.19938034]
[1721904661130,66.49029334,167.81,167.63,99.19938034]
[1721904661829,65.0,167.81,167.63,99.19938034]
[1721904662426,1.49029528,167.8,167.63,99.19938034]
[1721904662636,1.49035788,167.79,167.63,99.19938034]
[1721904662924,1.49035788,167.79,167.63,23.44938034]
[1721904663248,95.20252989,167.79,167.62,23.06639198]
[1721904663437,17.96,167.78,167.62,21.8739]
[1721904663633,52.45144845,167.77,167.62,21.8739]
[1721904663847,1.49083875,167.76,167.62,23.066571]
[1721904664027,45.0,167.77,167.62,23.066571]
[1721904664226,46.4908371,167.78,167.62,23.066571]
[1721904664431,1.49069518,167.76,167.62,23.066571]
[1721904664651,46.49069518,167.76,167.62,23.066571]
[1721904664947,46.49069518,167.76,167.63,20.0]
[1721904665755,46.49069518,167.76,167.64,45.0]
[1721904666130,1.49069518,167.76,167.62,21.8739]
[1721904666330,442.98,167.75,167.62,21.8739]
[1721904666527,389.2,167.75,167.63,1.19285736]
[1721904667846,389.2,167.75,167.63,46.19285736]
[1721904668166,389.2,167.75,167.64,20.0]
[1721904668466,1.49065533,167.74,167.64,20.0]
[1721904669660,389.2,167.75,167.64,20.0]
[1721904670552,27.37,167.73,167.62,21.8739]
[1721904670757,28.86106952,167.73,167.62,21.8739]
[1721904671065,45.0,167.72,167.62,21.8739]
[1721904671263,28.86106952,167.73,167.62,21.8739]
[1721904671437,64.68106952,167.73,167.62,21.8739]
[1721904671642,45.0,167.72,167.62,21.8739]
[1721904671943,27.37,167.7,167.62,21.8739]
[1721904672143,28.86119296,167.7,167.62,21.8739]
[1721904673649,45.0,167.69,167.62,6.3712]
[1721904673954,46.49146092,167.69,167.57,6.2208]
[1721904675762,46.49146092,167.69,167.57,7.41395732]
[1721904675940,46.49146092,167.69,167.57,6.2208]
[1721904676137,27.37,167.64,167.57,6.2208]
[1721904676363,27.37,167.64,167.29,3.87708751]
[1721904676364,27.37,167.61,167.51,6.5412]
[1721904676655,28.8622195,167.61,167.51,6.5412]
[1721904676861,28.86209161,167.61,167.51,6.5412]
[1721904677055,389.2,167.62,167.52,1.1934383]
[1721904678058,389.2,167.62,167.52,21.1934383]
[1721904678264,389.2,167.62,167.53,45.0]
[1721904678864,389.2,167.62,167.52,20.0]
[1721904679165,1.49188138,167.61,167.52,20.0]
[1721904679373,389.2,167.62,167.52,20.0]
[1721904679559,1.49197117,167.6,167.51,6.5412]
[1721904680144,27.37,167.61,167.51,7.73481236]
[1721904680351,27.37,167.61,167.52,1.19351822]
[1721904680567,27.37,167.61,167.51,7.7347226]
[1721904680941,27.37,167.61,167.52,45.0]
[1721904681144,27.37,167.61,167.52,46.19353408]
[1721904681364,27.37,167.61,167.52,45.0]
[1721904681758,27.37,167.64,167.53,1.19351269]
[1721904681956,28.86179994,167.64,167.52,46.19343995]
[1721904682163,389.2,167.66,167.53,20.0]
[1721904682377,389.2,167.66,167.54,45.0]
[1721904683057,1.49157878,167.65,167.54,45.0]
[1721904683257,1.49162046,167.64,167.54,45.0]
[1721904683565,1.49162046,167.64,167.51,6.5412]
[1721904684152,1.49212134,167.62,167.51,6.5412]
[1721904685068,1.4918912,167.64,167.51,6.5412]
[1721904685379,46.4918912,167.64,167.51,6.5412]
[1721904685676,20.0,167.63,167.51,6.5412]
[1721904685861,45.0,167.64,167.52,45.0]
[1721904686245,1.49182207,167.63,167.52,45.0]
[1721904686447,389.2,167.66,167.52,46.19345765]
[1721904686964,1.4916777,167.65,167.52,46.19345765]
[1721904687372,389.2,167.66,167.52,46.19345765]
[1721904687574,1.49167409,167.65,167.52,46.19345765]
[1721904687879,1.49167666,167.64,167.52,46.19345765]
[1721904688058,1.49167666,167.64,167.52,46.19334048]
[1721904688259,1.49167666,167.64,167.52,45.0]
[1721904688668,1.49158529,167.65,167.53,20.0]
[1721904688865,1.49158869,167.64,167.54,45.0]
[1721904689175,389.2,167.66,167.54,45.0]
[1721904689665,1.49158621,167.65,167.54,45.0]
[1721904689859,389.2,167.66,167.55,1.19338425]
[1721904690064,389.2,167.66,167.54,46.19326931]
[1721904690577,389.2,167.66,167.55,1.1932685]
[1721904690783,389.2,167.66,167.54,45.0]
[1721904690981,389.2,167.66,167.54,46.19326947]
[1721904691174,389.2,167.66,167.54,45.0]
[1721904691374,1.4915883,167.65,167.54,45.0]
[1721904691574,389.2,167.66,167.54,45.0]
[1721904691777,1.49159756,167.65,167.54,45.0]
[1721904692184,1.4915997,167.64,167.54,45.0]
[1721904692477,45.0,167.66,167.54,45.0]
[1721904692879,45.0,167.66,167.36,5.965]
[1721904693072,1.49165978,167.65,167.5,27.37]
[1721904693270,435.69170483,167.66,167.5,27.37]
[1721904694172,434.2,167.66,167.44,20.0]
[1721904694485,434.2,167.66,167.5,27.37]
[1721904695072,434.2,167.66,167.51,20.0]
[1721904695765,389.2,167.66,167.51,20.0]
[1721904695968,389.2,167.66,167.52,21.706]
[1721904696167,45.0,167.65,167.53,20.0]
[1721904696386,27.37,167.67,167.53,20.0]
[1721904696584,28.86138039,167.67,167.53,20.0]
[1721904696781,27.37,167.69,167.54,45.0]
[1721904696995,27.37,167.69,167.55,20.0]
[1721904697484,1.4912418,167.68,167.55,20.0]
[1721904697678,27.37,167.69,167.54,20.0]
[1721904699370,45.0,167.68,167.54,20.0]
[1721904699765,27.37,167.69,167.54,20.0]
[1721904699970,27.37,167.69,167.55,45.0]
[1721904700269,27.37,167.69,167.56,20.0]
[1721904701279,45.0,167.68,167.56,20.0]
[1721904701493,27.37,167.72,167.56,47.37]
[1721904701687,27.37,167.72,167.57,45.0]
[1721904701993,45.0,167.71,167.58,20.0]